Cogmind - Beta 13 @@@ ROGUE MODE // 2024.05.01 @ 21:21:57 Player: BrainTooSmol Result: Destroyed by G-47 Trooper with Particle Gun Performance ------------- Evolutions (2) 1000 Regions Visited (8) 1600 Robots Destroyed (66) 330 Value Destroyed (3086) 3086 Prototype IDs (24) 480 Alien Tech Used (0) 0 Bonus (1942) 1942 TOTAL SCORE: 8438 Bonus ------- High Alert Combat Kills 88 Follower Combat Kills 654 Entered Garrisons 400 Used RIF Installer 500 Aligned with FarCom 300 Cogmind --------- Core Integrity 0/550 Matter 208/300 Energy 275/275 System Corruption 2% Temperature Cool (44) Movement Treading (240) Ox1 Location -8/Garrison Parts ------- > --- POWER (1) -------- Deuterium Engine > --- PROPULSION (2) --- Light Treads Improved Treads > --- UTILITY (6) ------ Lightpack 2.0 Heavy Armor Plating Improved Light Armor Plating > --- WEAPON (2) ------- Heavy Assault Cannon > --- INVENTORY (40) --- Reinforced Ion Engine Nuclear Core Light Nuclear Core Light Fission Core Light Treads Light Treads Light Treads Light Treads Large Matter Pod (150) Visual Processing Unit Improved Sensor Array Transport Network Coupler Weapon Shielding Light Armor Plating Medium Armor Plating Medium Armor Plating Medium Armor Plating Hardened Medium Armor Plating Hacking Suite Hacking Suite Relay Coupler [NC] (27) Relay Coupler [NC] (26) Relay Coupler [NC] (26) Relay Coupler [NC] (21) Relay Coupler [Swarmer] (33) Relay Coupler [Grunt] (23) Relay Coupler [Grunt] (24) Relay Coupler [Duelist] (21) Relay Coupler [Sentry] (23) Relay Coupler [Sentry] (22) Relay Coupler [Demolisher] (17) Relay Coupler [Hunter] (14) Relay Coupler [Behemoth] (11) Heavy Assault Cannon Missile Launcher Axe Peak State ------------ > --- POWER ------------ Deuterium Engine > --- PROPULSION ------- Light Treads Improved Treads > --- UTILITY ---------- Lightpack 2.0 Improved Light Armor Plating Relay Coupler [Grunt] Relay Coupler [Hunter] > --- WEAPON ----------- Datajack Axe > --- INVENTORY -------- Reinforced Ion Engine Nuclear Core Light Nuclear Core Light Fission Core Light Treads Light Treads Light Treads Light Treads Large Matter Pod Visual Processing Unit Improved Sensor Array Transport Network Coupler Weapon Shielding Light Armor Plating Light Armor Plating Heavy Armor Plating Hardened Medium Armor Plating Relay Coupler [NC] Relay Coupler [NC] Relay Coupler [NC] Relay Coupler [NC] Relay Coupler [Swarmer] Relay Coupler [Grunt] Relay Coupler [Grunt] Relay Coupler [Duelist] Relay Coupler [Sentry] Relay Coupler [Sentry] Relay Coupler [Demolisher] Relay Coupler [Hunter] Relay Coupler [Behemoth] Firepult Enhanced Autogun Enhanced Autogun Assault Cannon Assault Cannon Assault Cannon Missile Launcher [Rating: 62] Favorites ----------- Power Deuterium Engine Engine Deuterium Engine Power Core Light Nuclear Core Propulsion Light Treads Treads Light Treads Leg Aluminum Leg Wheel Wheel Utility Huge Storage Unit Device Seismic Detector Storage Huge Storage Unit Processor Targeting Computer Hackware Relay Coupler [Grunt] Protection Light Armor Plating Weapon Heavy Assault Rifle Ballistic Gun Heavy Assault Rifle Ballistic Cannon Heavy Assault Cannon Launcher Grenade Launcher Special Weapon Mining Laser Slashing Weapon Axe Special Melee Weapon Datajack Build | -11 -10 -10 -10 -9 -8 -8 -8 -8 ------- Run | Yrd Mat Min Exi Min Mat Gar Mat Gar Slots Evolved 4 | . . . . . 4 . . . Power . | . . . . . . . . . Propulsion . | . . . . . . . . . Utility 4 | . . . . . 4 . . . Weapon . | . . . . . . . . . Parts Attached 70 | 1 9 2 . 1 36 14 5 2 Power 5 | . . . . 1 4 . . . Engine 3 | . . . . . 3 . . . Core 2 | . . . . 1 1 . . . Reactor . | . . . . . . . . . Propulsion 17 | . 2 . . . 9 3 3 . Treads 11 | . 1 . . . 4 3 3 . Leg 1 | . . . . . 1 . . . Wheel 5 | . 1 . . . 4 . . . Hover . | . . . . . . . . . Flight . | . . . . . . . . . Utility 23 | 1 1 . . . 11 7 2 1 Device 4 | 1 . . . . 3 . . . Storage 2 | . 1 . . . . 1 . . Processor 2 | . . . . . 2 . . . Hackware 4 | . . . . . . 3 1 . Protection 11 | . . . . . 6 3 1 1 Artifact . | . . . . . . . . . Weapon 25 | . 6 2 . . 12 4 . 1 Energy Gun . | . . . . . . . . . Energy Cannon . | . . . . . . . . . Ballistic Gun 14 | . 4 1 . . 8 1 . . Ballistic Cannon 1 | . . . . . . . . 1 Launcher 2 | . . 1 . . 1 . . . Special Weapon 4 | . 2 . . . 2 . . . Impact Weapon . | . . . . . . . . . Slashing Weapon 3 | . . . . . 1 2 . . Piercing Weapon . | . . . . . . . . . Special Melee Weapon 1 | . . . . . . 1 . . Unidentified Prototypes 1 | . . . . . 1 . . . Parts Lost 17 | . . . . . 14 2 1 . Power 2 | . . . . . 2 . . . Propulsion 6 | . . . . . 4 2 . . Utility 4 | . . . . . 4 . . . Weapon 5 | . . . . . 4 . 1 . Highest Loss Streak 3 | . . . . . 3 1 1 . To Critical Strikes . | . . . . . . . . . Average Slot Usage (%) 81 | . 100 100 100 100 71 82 73 70 Engine 8 | . 14 14 14 1 5 9 9 9 Core 1 | . . . . 12 3 . . . Treads 9 | . 7 14 14 14 6 10 18 18 Leg 2 | . 13 . . . 2 . . . Wheel 7 | . 7 14 14 14 8 6 . . Device 6 | . 14 14 14 14 9 . . . Storage 10 | . 14 14 14 14 9 9 9 9 Processor 4 | . . . . . 2 11 . . Hackware 3 | . . . . . . 4 17 15 Protection 8 | . . . . . 7 12 9 10 Ballistic Gun 13 | . 27 27 28 28 13 9 . . Slashing Weapon 3 | . . . . . 2 4 9 4 Special Melee Weapon 1 | . . . . . . 4 1 . Naked Turns . | . . . . . . . . . Heaviest Build 113 | 15 92 92 92 92 100 113 24 44 Greatest Support 43 | 20 20 10 10 10 40 40 43 43 Greatest Overweight (x) 11 | . 9 9 9 9 9 11 . 1 Average Overweight (x) 5 | . 3 9 9 9 8 5 . . Largest Inventory Capacity 40 | 8 25 25 25 25 25 40 40 40 Average Capacity 27 | 8 16 25 25 25 25 30 40 40 Most Carried 40 | 6 11 12 21 22 25 39 40 40 Average Carried 23 | 6 8 11 18 21 22 26 39 39 Final Capacity 40 | 8 25 25 25 25 25 40 40 40 Final Carried 40 | 6 11 12 21 21 24 37 40 37 Class Distribution -------------------- 63% | Mutant 13% | Hauler-Mutant 9% | Bothacker-Mutant 4% | Skirmisher 4% | Scavenger-Skirmisher Dominant Class ---------------- Mutant | -10/Materials Mutant | -10/Mines Mutant | -10/Exiles Mutant | -9/Mines Mutant | -8/Materials Mutant | -8/Garrison Hauler-Mutant | -8/Materials Hauler-Mutant | -8/Garrison Resources | -11 -10 -10 -10 -9 -8 -8 -8 -8 ----------- Run | Yrd Mat Min Exi Min Mat Gar Mat Gar Matter Collected 1715 | 240 148 16 124 46 669 407 65 . Remotely . | . . . . . . . . . Salvage Created 2309 | 15 229 17 . 114 1539 302 93 . Parts 147 | 2 20 3 . 10 85 21 6 . Haulers Intercepted 2 | . . . . . 2 . . . Recyclers Shooed . | . . . . . . . . . Parts Field Recycled . | . . . . . . . . . Retrieved Matter . | . . . . . . . . . Parts Self-Destructed . | . . . . . . . . . Prevented . | . . . . . . . . . Kills | -11 -10 -10 -10 -9 -8 -8 -8 -8 ------- Run | Yrd Mat Min Exi Min Mat Gar Mat Gar Combat Hostiles Destroyed 49 | . 5 3 . 3 30 8 . . Melee 13 | . . . . . 13 . . . Guns 27 | . 5 . . 3 11 8 . . AOE 9 | . . 3 . . 6 . . . Classes Destroyed 11 | 1 5 . . . 4 . 1 . Worker 3 | . 1 . . . 2 . . . Builder 1 | . . . . . 1 . . . Tunneler 1 | 1 . . . . . . . . Hauler 2 | . . . . . 2 . . . Recycler 1 | . . . . . . . 1 . Operator 4 | . 2 . . . 1 . 1 . Watcher 5 | . 3 . . . 1 . 1 . Swarmer 11 | . 2 3 . . 3 3 . . Grunt 26 | . 3 . . 3 19 1 . . Sentry 10 | . . . . . 7 3 . . Hunter 2 | . . . . . 1 1 . . Best Kill Streak 8 | 1 2 3 . 3 8 3 1 . Combat Bots Only 6 | . 2 3 . 3 6 3 . . Max Kills in Single Turn 4 | 1 1 2 . 2 4 1 1 . Gunslinging 1 | . . . . 1 . . . . Exploded 2 | . . 2 . . 2 . . . Melee 1 | . . . . . 1 . . . Uniques/NPCs Destroyed . | . . . . . . . . . Combat | -11 -10 -10 -10 -9 -8 -8 -8 -8 -------- Run | Yrd Mat Min Exi Min Mat Gar Mat Gar Hostile Shots Fired 289 | . 17 7 . 21 172 64 6 2 Missed 80 | . 9 3 . 4 38 22 4 . Damage Taken 3303 | . 224 56 . 205 2101 591 92 34 Core 667 | . 26 28 . 54 465 51 25 18 Absorbed by Shields 21 | . . . . . . 21 . . Redirected to Shielding 2 | . . . . . 2 . . . Core Remaining (%) 78 | 100 . . . 56 . . . . Volleys Fired 149 | 5 26 4 . 6 62 37 . 9 Largest 2 | 2 2 1 . 2 2 2 . 1 Hottest 100 | 40 100 30 . 46 100 50 . 60 Shots Fired 266 | 10 49 4 . 12 109 73 . 9 Gun 238 | 10 46 . . 12 97 73 . . Cannon 9 | . . . . . . . . 9 Launcher 8 | . . 4 . . 4 . . . Special 11 | . 3 . . . 8 . . . Kinetic 247 | 10 46 . . 12 97 73 . 9 Thermal 11 | . 3 . . . 8 . . . Explosive 8 | . . 4 . . 4 . . . Electromagnetic . | . . . . . . . . . Robot Hit Streak 21 | 5 8 2 . 7 19 21 . 1 Robot Miss Streak 5 | 1 5 1 . 1 2 2 . 2 Penetration Max . | . . . . . . . . . Secondary Targets 4 | . . . . 2 1 1 . . Max Gunslinging Chain 1 | . . . . 1 1 1 . . Shots Hit Robots 233 | 7 28 2 . 10 112 68 5 1 Core Hits 106 | 1 16 3 . 5 64 15 2 . Critical Kills . | . . . . . . . . . Critical Parts Destroyed 2 | 1 . . . . . 1 . . Critical Strikes 7 | 1 . . . . 5 1 . . Destroy 2 | 1 . . . . . 1 . . Sever 5 | . . . . . 5 . . . Melee Attacks 106 | . . . . . 52 45 9 . Impact . | . . . . . . . . . Slashing 89 | . . . . . 52 28 9 . Piercing . | . . . . . . . . . Sneak Attacks 15 | . . . . . 4 8 3 . Combat Hostiles . | . . . . . . . . . Follow-up Attacks . | . . . . . . . . . Damage Inflicted 5303 | 97 415 192 . 148 3231 928 292 . Guns 2687 | 97 415 . . 148 1135 892 . . Cannons . | . . . . . . . . . Explosions 771 | . . 192 . . 579 . . . Melee 1837 | . . . . . 1509 36 292 . Ramming 8 | . . . . . 8 . . . Kinetic 2687 | 97 415 . . 148 1135 892 . . Thermal . | . . . . . . . . . Explosive 771 | . . 192 . . 579 . . . Electromagnetic . | . . . . . . . . . Impact . | . . . . . . . . . Slashing 1837 | . . . . . 1509 36 292 . Piercing . | . . . . . . . . . Highest Corruption 2 | . . . . . . . 2 2 Average Corruption 2 | . . . . . . . 2 2 Corruption Purged . | . . . . . . . . . Corruption Blocked . | . . . . . . . . . Effects 7 | . . . . . . . 2 5 Message Errors 3 | . . . . . . . 1 2 Heat Flow Errors 1 | . . . . . . . . 1 Energy Discharges 2 | . . . . . . . . 2 Data Loss (minor) 1 | . . . . . . . 1 . Overload Shots . | . . . . . . . . . Overflow Damage 157 | . . 24 . . 11 6 116 . Projectiles . | . . . . . . . . . Explosions 24 | . . 24 . . . . . . Melee 133 | . . . . . 11 6 116 . Knockbacks . | . . . . . . . . . Impact . | . . . . . . . . . Kinetic . | . . . . . . . . . Secondary . | . . . . . . . . . Self-Inflicted Damage 69 | . . 20 . . 49 . . . Shots 5 | . . 1 . . 4 . . . Rammed 1 | . . . . . 1 . . . Targets Rammed 1 | . . . . . 1 . . . Kicked . | . . . . . . . . . Crushed . | . . . . . . . . . Highest Temperature 270 | . 22 . . 15 36 254 . 270 Average Temperature 57 | . 11 . . 8 12 81 . 62 Received Heat Transfer 1569 | . 60 . . 114 1080 279 18 18 Effects 2 | . . . . . . 1 . 1 Energy Bleed 2 | . . . . . . 1 . 1 Siege Activations . | . . . . . . . . . Robots Corrupted . | . . . . . . . . . Combat Hostiles . | . . . . . . . . . Parts Fried . | . . . . . . . . . Impact Corruptions . | . . . . . . . . . Robots Melted . | . . . . . . . . . Combat Hostiles . | . . . . . . . . . Parts Melted . | . . . . . . . . . Heat Transferred . | . . . . . . . . . Parts Sabotaged . | . . . . . . . . . Parts Stolen . | . . . . . . . . . Parts Stripped . | . . . . . . . . . Power Chain Reactions . | . . . . . . . . . Alert | -11 -10 -10 -10 -9 -8 -8 -8 -8 ------- Run | Yrd Mat Min Exi Min Mat Gar Mat Gar Peak Influence 2737 | 5 135 101 . 85 492 2737 1551 968 Initial 1333 | . 3 . . . . 321 1333 942 Average 651 | 2 50 99 . 72 204 1145 1443 944 Maximum Alert Level 5 | . . . . . 2 5 4 3 Low Security (%) 35 | 100 100 100 . 100 52 . . . Level 1 24 | . . . . . 37 28 . . Level 2 8 | . . . . . 9 14 . . Level 3 7 | . . . . . . 14 . 100 Level 4 12 | . . . . . . 10 100 . Level 5 12 | . . . . . . 31 . . High Security . | . . . . . . . . . Max Security . | . . . . . . . . . Squads Dispatched 11 | . 1 . . . 5 . 5 . Investigation 1 | . . . . . . . 1 . Extermination . | . . . . . . . . . Reinforcement 5 | . 1 . . . 3 . 1 . Assault 3 | . . . . . . . 3 . Garrison 2 | . . . . . 2 . . . Intercept . | . . . . . . . . . Searches Triggered . | . . . . . . . . . Construction Impeded 1 | . . . . . 1 . . . Haulers Reinforced . | . . . . . . . . . Active Scanning Responses . | . . . . . . . . . Cargo Convoy Interrupts . | . . . . . . . . . Stealth | -11 -10 -10 -10 -9 -8 -8 -8 -8 --------- Run | Yrd Mat Min Exi Min Mat Gar Mat Gar Distress Signals 8 | . . . . . 4 . 4 . Communications Jammed . | . . . . . . . . . Distress Signals . | . . . . . . . . . Times Spotted 111 | . 15 3 . 3 46 22 20 2 Peak Tracking Total 9 | . 3 3 . 3 7 3 9 2 Tactical Retreats 10 | . . . . . 4 2 4 . Traps | -11 -10 -10 -10 -9 -8 -8 -8 -8 ------- Run | Yrd Mat Min Exi Min Mat Gar Mat Gar Traps Triggered 9 | . . . . . 1 6 2 . Indirectly . | . . . . . . . . . Trap Hack Attempts . | . . . . . . . . . Triggered . | . . . . . . . . . Disarmed . | . . . . . . . . . Reprogrammed . | . . . . . . . . . Reused . | . . . . . . . . . Traps Extracted . | . . . . . . . . . Installed . | . . . . . . . . . Triggered . | . . . . . . . . . Machines | -11 -10 -10 -10 -9 -8 -8 -8 -8 ---------- Run | Yrd Mat Min Exi Min Mat Gar Mat Gar Machines Disabled 11 | . 1 . . . 3 5 1 1 Max in Single Turn 1 | . 1 . . . 1 1 . 1 Garrison Relay 5 | . . . . . . 5 . . Machines Repaired . | . . . . . . . . . Machines Dismantled . | . . . . . . . . . Machines Sabotaged . | . . . . . . . . . Overloaded Fab Kills . | . . . . . . . . . Hacking | -11 -10 -10 -10 -9 -8 -8 -8 -8 --------- Run | Yrd Mat Min Exi Min Mat Gar Mat Gar Machines Accessed 23 | . 6 . 2 . 5 5 4 1 Terminals 16 | . 4 . . . 4 5 2 1 Fabricators . | . . . . . . . . . Repair Stations . | . . . . . . . . . Recycling Units 2 | . 2 . . . . . . . Scanalyzers 1 | . . . . . . . 1 . Garrison Access 2 | . . . . . 1 . 1 . Total Hacks 38 | . 13 . 2 . 7 7 8 1 Successful 22 | . 4 . 2 . 6 5 5 . Failed 15 | . 8 . . . 1 2 3 1 Catastrophic 4 | . . . . . . 1 2 1 Database Lockouts 1 | . 1 . . . . . . . Manual 20 | . 9 . 1 . 5 . 5 . Terminals 28 | . 9 . . . 6 7 5 1 Fabricators . | . . . . . . . . . Repair Stations . | . . . . . . . . . Recycling Units 4 | . 4 . . . . . . . Scanalyzers 2 | . . . . . . . 2 . Garrison Access 2 | . . . . . 1 . 1 . Terminal Hacks 10 | . 1 . 2 . 2 5 . . Record 1 | . . . 1 . . . . . Robot Analysis 1 | . 1 . . . . . . . Open Door 1 | . . . . . . 1 . . Emergency Access Points 1 | . . . . . . 1 . . Locate Traps 1 | . . . . . 1 . . . Zone Layout 1 | . . . . . 1 . . . Garrison Registry 1 | . . . . . . 1 . . Patrol Navigation 1 | . . . . . . 1 . . Security Stations 1 | . . . . . . 1 . . Derelict Proto ID Bank 1 | . . . 1 . . . . . Fabricator Hacks . | . . . . . . . . . Repair Station Hacks . | . . . . . . . . . Recycling Unit Hacks 2 | . 2 . . . . . . . Retrieve Components 2 | . 2 . . . . . . . Scanalyzer 2 | . . . . . . . 2 . Insert Component 1 | . . . . . . . 1 . Analyze 1 | . . . . . . . 1 . Garrison Access Hacks 2 | . . . . . 1 . 1 . Unlock Access 2 | . . . . . 1 . 1 . Unauthorized Hacks 6 | . 1 . . . 3 . 2 . Terminals 6 | . 1 . . . 3 . 2 . Assimilate 1 | . . . . . 1 . . . Botnet 5 | . 1 . . . 2 . 2 . Fabricators . | . . . . . . . . . Repair Stations . | . . . . . . . . . Recycling Units . | . . . . . . . . . Scanalyzers . | . . . . . . . . . Garrison Access . | . . . . . . . . . Data Cores Recovered . | . . . . . . . . . Used . | . . . . . . . . . Hacking Detections 15 | . 5 . . . 4 2 3 1 Full Trace Events 1 | . 1 . . . . . . . Feedback Events . | . . . . . . . . . Feedback Blocked . | . . . . . . . . . Robot Schematics Acquired . | . . . . . . . . . Robots Built . | . . . . . . . . . Authchips . | . . . . . . . . . Time . | . . . . . . . . . Total Robot Build Rating . | . . . . . . . . . Part Schematics Acquired . | . . . . . . . . . Parts Built . | . . . . . . . . . Authchips . | . . . . . . . . . Time . | . . . . . . . . . Total Part Build Rating . | . . . . . . . . . Parts Repaired . | . . . . . . . . . Time . | . . . . . . . . . Parts Recycled . | . . . . . . . . . Recycled Matter . | . . . . . . . . . Retrieved Matter . | . . . . . . . . . Retrieved Components 14 | . 14 . . . . . . . Parts Scanalyzed 1 | . . . . . . . 1 . Part Schematics Acquired . | . . . . . . . . . Parts Damaged . | . . . . . . . . . Bothacking | -11 -10 -10 -10 -9 -8 -8 -8 -8 ------------ Run | Yrd Mat Min Exi Min Mat Gar Mat Gar Used RIF Installer 1 | . . . . . . 1 . . Robots Hacked 5 | . . . . . . 5 . . Non-combat . | . . . . . . . . . Combat 5 | . . . . . . 5 . . Robot Hacks Applied 5 | . . . . . . 5 . . scatter_targeting 1 | . . . . . . 1 . . streamctrl_high 1 | . . . . . . 1 . . formatsys_high 3 | . . . . . . 3 . . Relay Couplers Released 17 | . . . . . . 17 . . Machine Destruction 17 | . . . . . . 17 . . Attached 4 | . . . . . . 3 1 . Fabnet Peak Effective % . | . . . . . . . . . Robots Rewired 6 | . . . . . . 6 . . Allies Hacked . | . . . . . . . . . Hacks Repelled . | . . . . . . . . . Allies | -11 -10 -10 -10 -9 -8 -8 -8 -8 -------- Run | Yrd Mat Min Exi Min Mat Gar Mat Gar Total Allies 12 | . . . . . . 12 . . Largest Group 6 | . . . . . . 6 6 . Highest-Rated Group 148 | . . . . . . 148 139 . Highest-Rated Ally 39 | . . . . . . 39 39 . Total Orders 2 | . . . . . . 2 . . STAY 1 | . . . . . . 1 . . FOLLOW 1 | . . . . . . 1 . . Ally Attacks 137 | . . . . . . 44 93 . Total Damage 2488 | . . . . . . 1022 1466 . Kills 25 | . . . . . . 10 15 . Allies Corrupted . | . . . . . . . . . Allies Melted . | . . . . . . . . . Intel | -11 -10 -10 -10 -9 -8 -8 -8 -8 ------- Run | Yrd Mat Min Exi Min Mat Gar Mat Gar Robot Analysis Total 1 | . 1 . . . . . . . Derelict Logs Recovered 2 | . . . . 2 . . . . Drone Launches . | . . . . . . . . . Drone Recoveries . | . . . . . . . . . Exploration | -11 -10 -10 -10 -9 -8 -8 -8 -8 ------------- Run | Yrd Mat Min Exi Min Mat Gar Mat Gar Turns Passed 11634 | 62 1068 180 682 434 3972 4175 865 196 Spaces Moved 4383 | 36 521 79 315 188 1027 1648 484 85 Core . | . . . . . . . . . Treads 1159 | . . . . . 19 571 484 85 Legs 355 | 36 312 . . . 7 . . . Wheels 2869 | . 209 79 315 188 1001 1077 . . Hover . | . . . . . . . . . Flight . | . . . . . . . . . Fastest Speed 95 | 120 120 215 215 215 195 95 160 160 Average Speed 191 | 120 158 215 215 215 216 189 160 161 Slowest Speed 750 | 120 215 215 215 215 750 245 160 240 Overloaded Moves . | . . . . . . . . . Propulsion Burnouts . | . . . . . . . . . Robots Hopped . | . . . . . . . . . Cave-ins Triggered . | . . . . . . . . . Exploration Rate (%) 50 | 3 79 22 70 60 61 95 54 13 Regions Visited 8 Branch Regions 3 Pre-discovered Areas 2 | . . . 1 1 . . . . Known Exits Taken 2 | . . . . . 1 . 1 . Unknown Exits Taken 5 | 1 1 1 1 1 . . . . Scrap Searched 2 | . . 1 . 1 . . . . Spaces Dug 24 | . 2 . . . 14 3 3 2 Terrain Destroyed 66 | . 2 21 . . 30 3 3 7 Melee 12 | . . . . . 6 3 3 . Projectile 17 | . 2 . . . 8 . . 7 AOE 37 | . . 21 . . 16 . . . Terrain Rammed . | . . . . . . . . . Walls Destroyed . | . . . . . . . . . Machines Disabled . | . . . . . . . . . Actions | -11 -10 -10 -10 -9 -8 -8 -8 -8 --------- Run | Yrd Mat Min Exi Min Mat Gar Mat Gar Total 7219 | 44 711 85 320 206 2566 2594 562 131 Wait 2333 | 3 142 . . 11 1367 735 44 31 Move 4377 | 35 520 78 314 187 1027 1647 484 85 Hop . | . . . . . . . . . Pick Up 61 | . 7 1 6 . 10 26 10 1 Fast Attach 19 | 1 3 . . . 15 . . . Attach 18 | . 1 . . . 6 9 . 2 Detach 3 | . 1 . . . . 2 . . Swap 33 | . 5 2 . 1 15 5 5 . Drop 39 | . 6 . . 1 11 8 10 3 Fire 149 | 5 26 4 . 6 62 37 . 9 Melee 106 | . . . . . 52 45 9 . Ram 1 | . . . . . 1 . . . Kick . | . . . . . . . . . Crush . | . . . . . . . . . Escape Stasis 47 | . . . . . . 47 . . Rewire 33 | . . . . . . 33 . . Trap . | . . . . . . . . . Miscellaneous . | . . . . . . . . . Route ------- -11/Scrapyard -10/Materials (discovered 5 exits: [*Mat x3] / [*Min x2]) -10/Mines -10/Exiles -9/Mines -8/Materials (discovered 2 exits: [*Fac] / Gar) -8/Garrison (discovered 3 exits: *Mat x3) -8/Materials (discovered 3 exits: [*Fac x2] / Gar) -8/Garrison History --------- Turn | Location | Event 1 | -11/Scrapyard | Discovered new exit (range 2) 63 | -11/Scrapyard | Entered Materials 68 | -10/Materials | Discovered new exit (range 15) 256 | -10/Materials | Discovered new exit (range 11) 317 | -10/Materials | Build established: Mutant 319 | -10/Materials | Discovered new exit (range 11) 394 | -10/Materials | Discovered new exit (range 10) 653 | -10/Materials | Discovered new exit (range 3) 813 | -10/Materials | Central database locked down 1131 | -10/Materials | Entered Mines 1300 | -10/Mines | Deemed a non-threat by the Exiles lab entrance 1303 | -10/Mines | Discovered new exit (range 5) 1311 | -10/Mines | Entered Exiles 1373 | -10/Exiles | Met 8R-AWN 1405 | -10/Exiles | Met EX-HEX 1471 | -10/Exiles | Met EX-BIN 1495 | -10/Exiles | Aligned with FarCom system 1497 | -10/Exiles | Given EX-Vault access code 1547 | -10/Exiles | Opened EX-Vault 1564 | -10/Exiles | Found Lightpack 2.0 1571 | -10/Exiles | Found Firepult 1617 | -10/Exiles | Warned to stay clear of 0b10 Research branches 1682 | -10/Exiles | Met EX-DEC 1695 | -10/Exiles | Learned location of Zion (-6) 1965 | -10/Exiles | Discovered new exit (range 12) 1993 | -10/Exiles | Stole two prototypes: Lightpack 2.0, Firepult 1993 | -10/Exiles | Entered Mines 2009 | -9/Mines | Learned Materials terminal intel 2341 | -9/Mines | Learned location of Storage (-7) 2377 | -9/Mines | A weapon hastily lodged in a ceiling crevice suddenly fell to the ground 2394 | -9/Mines | Discovered new exit (range 16) 2427 | -9/Mines | Entered Materials 2427 | -8/Materials | Evolved 4 slots: Utility x4 2428 | -8/Materials | Loaded intel: 12 terminal locations 3023 | -8/Materials | Lost 3 parts (1u2w) 4822 | -8/Materials | Core integrity fell below 50% 5180 | -8/Materials | Core integrity fell below 20% 5617 | -8/Materials | Discovered new exit (range 14) 5632 | -8/Materials | Build established: Scavenger-Skirmisher 6059 | -8/Materials | Build established: Skirmisher 6204 | -8/Materials | Garrison activated, responded to threat 6399 | -8/Materials | Identified exit to Garrison 6399 | -8/Materials | Entered Garrison 6512 | -8/Garrison | Triggered checkpoint 6558 | -8/Garrison | Installed Relay Interface Framework 6728 | -8/Garrison | Build established: Mutant 7421 | -8/Garrison | Triggered checkpoint 7714 | -8/Garrison | Triggered checkpoint 7866 | -8/Garrison | Discovered new exit (range 14) 8134 | -8/Garrison | Triggered checkpoint 8536 | -8/Garrison | Discovered new exit (range 10) 8764 | -8/Garrison | Triggered checkpoint 8910 | -8/Garrison | Build established: Commander-Mutant 8930 | -8/Garrison | Triggered checkpoint 9005 | -8/Garrison | Garrison Relay disabled 9050 | -8/Garrison | Discovered new exit (range 10) 9313 | -8/Garrison | Build established: Hauler-Mutant 9404 | -8/Garrison | Garrison Relay disabled 9472 | -8/Garrison | Discovered new exit (range 42) 9472 | -8/Garrison | Discovered new exit (range 65) 9472 | -8/Garrison | Discovered new exit (range 86) 9598 | -8/Garrison | Rescued a captive Derelict 9598 | -8/Garrison | Rescued a captive Derelict 9776 | -8/Garrison | Garrison Relay disabled 10036 | -8/Garrison | Garrison Relay disabled 10067 | -8/Garrison | Build established: Bothacker-Mutant 10206 | -8/Garrison | Triggered checkpoint 10230 | -8/Garrison | Garrison Relay disabled 10261 | -8/Garrison | Learned Materials security intel 10574 | -8/Garrison | Entered Materials 10574 | -8/Materials | Accompanied by 6 allies 10807 | -8/Materials | Discovered new exit (range 16) 10964 | -8/Materials | Build established: Hauler-Mutant 11049 | -8/Materials | Discovered new exit (range 11) 11374 | -8/Materials | First assault squad dispatched 11439 | -8/Materials | Identified exit to Garrison 11439 | -8/Materials | Entered Garrison 11454 | -8/Garrison | Lost 3 allies 11626 | -8/Garrison | Triggered checkpoint 11635 | -8/Garrison | Destroyed by G-47 Trooper with Particle Gun Last Messages --------------- Access door unlocked. 11439_ EXIT=UNLOCKED: GARRISON LOCATION=GARRISON GOAL=ESCAPE 11439_ Receiving FarCom transmissions... 11449_ Connecting with Garrison Terminal... 11471_ System corrupted: Energy discharge (-99). 11508_ &#FIUNJLWJ=6PT ,#PE0QLOX|XOOLEOWD0OH 11547_ System corrupted: Energy discharge (-77). 11548_ Dropped Axe. 11550_ Acquired Axe. 11566_ NWYEDFNM,R|R8JB5, W2WF 11569_ Slug penetrates Earth. 11588_ System corrupted: Heat flow error (+293). 11589_ Overheating: Energy bleed (-41). 11605_ Discarded Relay Coupler [Grunt]. 11605_ Discarded Relay Coupler [Hunter]. 11626_ Slug penetrates Garrison Door. 11626_ Garrison Door breached. 11626_ Beams of light sweep through the air. An alarm sounds. Map ----- +----------------------------------------------------+ | ?????????????????????????????????????????????????? | | ?????????????????????????????????????????????????? | | ?????????????????????????????????????????????????? | | ?????????????????????????????????????????????????? | | ?????????????????????????????????????????????????? | | ?????????????????????????????????????????????????? | | ?????????????????????????????????????????????????? | | ?????????????????????????????????????????????????? | | ?????????????????????????????????????????????????? | | ?????????????????????????????????????????????????? | | ?????????????????????????????????????????????????? | | ?????????????????????????????????????????????????? | | ?????????????????????????????????????????????????? | | ?????????????????????????????????????????????????? | | ?????????????????????????????????????????????????? | | ?????????????????????????????????????????????????? | | ??????????????????????????????????? ????????????? | | ?????????????????????????????????? #???????????? | | ??????????????????????#####??????? #???????????? | | ??????????????????????# ##??????# #???????????? | | ??????????????????????## r #??????# #???????????? | | ??????????????????????# #??????# ???????????? | | ??????????????????????# #??????# ???????????? | | ??????????????????????### ##??????# #???????????? | | ????????????????????????# #;##### g #???????????? | | ????????????????????????#@; ;g ;#??????????? | | ????????????????????????# # ###;# #???????????? | | ????????????????????????# # ### #?# #???????????? | | ????????????????????????# ####""### ############# | | ????????????????????????# | | ????????g?g?????????????# | | ?????????l??????????????# | | ????????????????????????# ###################### | | ????????????????????????#^^ #????????????????????? | | ????????????????????????#^^ #????????????????????? | | ????????????????????????# #????????????????????? | | ????????????????????????# #????????????????????? | | ????????????????????????# #????????????????????? | | ???????????????????YY???# #????????????????????? | | ????????????????????????# #????????????????????? | | ???????????????????????? #????????????????????? | | ???????????????????????? #????????????????????? | | ???????????????????????? #????????????????????? | | ???????????????????????## #????????????????????? | | ????????????????????????# #????????????????????? | | ???????????????????????? ?????????????????????? | | ???????????????????????? ?????????????????????? | | ????????????????????????? ?????????????????????? | | ?????????????????????????????????????????????????? | | ?????????????????????????????????????????????????? | +----------------------------------------------------+ Best States ------------- Heat Dissipation 59 Energy Generation 14 Energy Capacity 275 Matter Stores 300 Matter Capacity 300 Sight Range 16 Robot Scan Range 15 Terrain Scan Density 10 Armor Coverage 750 Core Shielding 20 Evasion (%) 55 Targeting Accuracy 13 Recoil Reduction 2 Relay Coupler Types 2 Relay Coupler Value 27 Item Schematics ----------------- None Robot Schematics ------------------ None Fabricated ------------ Nothing Alien Tech Used ----------------- None Achievements -------------- Packrat Challenges ------------ None Game ------ Seed SuspensionExplosiveTearclaws Manual? 0 Play Time 01:03:03 Cumulative 72.9 hours Start 2024.05.01 @ 18:44:13 End 2024.05.01 @ 21:21:57 Sessions 1 Manual Loads 0 Difficulty Rogue Special Mode None Game No. 51 Rogue 51 Adventurer 0 Explorer 0 Win Type - Total 1 Types 1/0/0/0/0/0/0/0/0 Lore% 51 Gallery% 43 Achievement% 40 Wizard Run 0 Options --------- Layout 0 ASCII 0 Keyboard 0 Movement Mouse Keybinds 0 Fullscreen 1 Font 18/SmallcapsGlow Map View 76x50 Zoom Use 0% Tactical HUD 1 Map Filters NONE Filters NONE Steam 1 RUN: 4412b25c-da3c-4422-8ae3-e5f11cfb6592